fUST/lending_fUST_20251115
["ID","MTS","AMOUNT","RATE_DAILY","PERIOD"]
[393997952,1763171442587,-10000.0,0.00032232,10]
[393997953,1763171442598,-500.0,0.00032273,5]
[393997955,1763171442606,-2430.1775381,0.00032313,2]
[393997957,1763171442615,-352.1086111,0.0003233,40]
[393997959,1763171442624,-352.1086111,0.00032691,48]
[393997961,1763171442633,-1000.0,0.00032704,30]
[393997962,1763171442642,-244.0,0.00032704,30]
[393997963,1763171442650,-1000.0,0.00032821,5]
[393997964,1763171442659,-250.99999639,0.00032877,7]
[393997965,1763171442668,-3078.87,0.00033,14]
[393997966,1763171442678,-172.3980226,0.00033,33]
[393997967,1763171442687,-230.4619779,0.00033053,56]
[393997968,1763171442696,-352.1086111,0.00033053,56]
[393997969,1763171442705,-353.994393,0.00033156,7]
[393997970,1763171442715,-446.620484,0.00033165,2]
[393997971,1763171442723,-223.872892,0.000332,117]
[393997972,1763171442733,-151.0,0.000333,11]
[393997973,1763171442742,-1500.0,0.00033368,5]
[393997974,1763171442751,-352.1086111,0.00033414,63]
[393997975,1763171442760,-502.34423643,0.00033773,5]
[393997976,1763171442770,-352.1086111,0.00033775,71]
[393997977,1763171442779,-773.28380445,0.00033916,5]
[393997978,1763171442788,-169.0,0.00034,120]
[393997979,1763171442797,-169.0,0.00034,90]
[393997980,1763171442806,-500.61430866,0.0003403,5]
[393997982,1763171442815,-352.1086111,0.00034137,79]
[393997984,1763171442824,-2412.89962437,0.00034415,2]
[393997986,1763171442833,-5000.0,0.00034456,2]
[393997987,1763171442844,-352.1086111,0.00034498,86]
[393997988,1763171442853,-2412.89962438,0.00034657,2]
[393997989,1763171442862,-151.0,0.000347,19]
[393997990,1763171442871,-2430.1775381,0.00034701,2]
[393997991,1763171442881,-352.1086111,0.00034859,94]
[393997992,1763171442890,-8974.21554334,0.00035,14]
[393997993,1763171442899,-1465.75420474,0.00035,2]
[393997994,1763171442908,-159.0,0.00035,120]
[393997995,1763171442917,-204.02394866,0.00035,2]
[393997996,1763171442927,-169.0,0.00035,120]
[393997997,1763171442936,-173.193104,0.00035,31]
[393997998,1763171442945,-156.547399,0.00035,31]
[393997999,1763171442953,-151.0,0.00035,31]
[393998000,1763171442963,-151.0,0.00035,31]
[393998001,1763171442972,-156.833439,0.00035,31]
[393998002,1763171442981,-151.0,0.00035,31]
[393998003,1763171442990,-151.0,0.00035,2]
[393998004,1763171442999,-151.0,0.00035,31]
[393998005,1763171443009,-269.367307,0.00035,31]
[393998006,1763171443018,-158.708009,0.00035,31]
[393998007,1763171443027,-151.0,0.00035,31]
[393998008,1763171443040,-151.0,0.00035,31]
[393998009,1763171443049,-151.0,0.00035,31]
[393998010,1763171443058,-151.0,0.00035,31]
[393998011,1763171443067,-209.0,0.00035,120]
[393998012,1763171443207,-2868.729599,0.00035,31]
[393998013,1763171443217,-151.0,0.00035,31]
[393998014,1763171443226,-2868.729599,0.00035,31]
[393998015,1763171443236,-151.0,0.00035,31]
[393998016,1763171443245,-2868.729599,0.00035,31]
[393998017,1763171443254,-2868.729599,0.00035,31]
[393998018,1763171443263,-151.0,0.00035,31]
[393998019,1763171443272,-151.757969,0.00035,31]
[393998020,1763171443281,-18730.86749191,0.00035,13]
[393998021,1763171443290,-195.642105,0.00035143,7]
[393998022,1763171443299,-195.642105,0.00035143,7]
[393998023,1763171443307,-195.642105,0.00035143,7]
[393998024,1763171443316,-1253.127483,0.00035143,31]
[393998025,1763171443327,-195.642105,0.00035143,7]
[393998026,1763171443336,-1253.127483,0.00035143,31]
[393998027,1763171443347,-151.0,0.00035143,31]
[393998028,1763171443356,-157.846011,0.00035143,31]
[393998029,1763171443365,-1253.127483,0.00035143,31]
[393998030,1763171443380,-1253.127483,0.00035143,31]
[393998031,1763171443398,-152.154092,0.00035143,31]
[393998032,1763171443418,-151.0,0.00035143,31]
[393998033,1763171443431,-151.0,0.00035143,30]
[393998034,1763171443440,-151.0,0.00035143,31]
[393998035,1763171443449,-533.92382,0.00035143,31]
[393998036,1763171443459,-533.92382,0.00035143,31]
[393998037,1763171443470,-151.0,0.00035143,31]
[393998038,1763171443480,-588.297637,0.00035143,31]
[393998039,1763171443491,-153.881741,0.00035143,31]
[393998040,1763171443502,-533.92382,0.00035143,31]
[393998041,1763171443512,-588.297637,0.00035143,31]
[393998042,1763171443523,-533.92382,0.00035143,31]
[393998043,1763171443533,-588.297637,0.00035143,31]
[393998044,1763171443543,-588.297637,0.00035143,31]
[393998045,1763171443553,-352.1086111,0.00035221,102]
[393998047,1763171443562,-230.4619779,0.00035582,110]
[393998049,1763171443572,-503.7769313,0.00035616,5]
[393998050,1763171443581,-151.0,0.00035616,31]
[393998051,1763171443592,-151.0,0.00035616,31]
[393998052,1763171443603,-151.0,0.00035616,31]
[393998053,1763171443612,-151.0,0.00035616,31]
[393998054,1763171443622,-1000.0,0.00035974,30]
[393998055,1763171443633,-492.0,0.00035974,30]
[393998056,1763171443644,-477.64850121,0.00036,30]
[393998057,1763171443653,-3078.87,0.00036,14]
[393998058,1763171443662,-353.994393,0.00036,30]
[393998059,1763171443671,-151.0,0.00036,31]
[393998060,1763171443680,-456.788697,0.00036,31]
[393998061,1763171443689,-151.0,0.00036,31]
[393998062,1763171443698,-456.788697,0.00036,31]
[393998063,1763171443707,-456.788697,0.00036,31]
[393998064,1763171443716,-456.788697,0.00036,31]
[393998065,1763171443726,-172.558549,0.00036,31]
[393998066,1763171443735,-172.558549,0.00036,31]
[393998067,1763171443745,-172.558549,0.00036,31]
[393998068,1763171443754,-172.558549,0.00036,31]
[393998069,1763171443763,-358.8527,0.00036,31]
[393998070,1763171443772,-358.8527,0.00036,31]
[393998071,1763171443781,-358.8527,0.00036,31]
[393998072,1763171443790,-358.8527,0.00036,31]
[393998073,1763171443800,-153.97,0.00036162,60]
[393998074,1763171443809,-210.88,0.00036162,60]
[393998075,1763171443819,-151.0,0.00036239,31]
[393998076,1763171443828,-151.0,0.00036239,31]
[393998077,1763171443838,-153.210785,0.00036239,31]
[393998078,1763171443849,-151.0,0.00036239,31]
[393998079,1763171443858,-151.0,0.00036239,31]
[393998080,1763171443867,-151.0,0.00036239,31]
[393998081,1763171443877,-151.0,0.00036239,31]
[393998082,1763171443887,-151.0,0.00036239,31]
[393998083,1763171443896,-221.514745,0.00036239,31]
[393998084,1763171443907,-151.0,0.00036239,31]
[393998085,1763171443916,-197.292001,0.00036239,31]
[393998086,1763171443926,-197.292001,0.00036239,31]
[393998087,1763171443935,-197.292001,0.00036239,31]
[393998088,1763171443944,-153.123315,0.00036239,31]
[393998089,1763171443954,-197.292001,0.00036239,31]
[393998090,1763171443963,-158.951562,0.00036239,31]
[393998091,1763171443972,-356.203395,0.00036239,31]
[393998092,1763171443982,-356.203395,0.00036239,31]
[393998093,1763171443991,-356.203395,0.00036239,31]
[393998094,1763171444000,-356.203395,0.00036239,31]
[393998095,1763171444010,-151.0,0.00036239,31]
[393998096,1763171444019,-151.0,0.00036239,31]
[393998097,1763171444028,-151.0,0.00036239,31]
[393998098,1763171444038,-169.594046,0.00036239,31]
[393998099,1763171444050,-151.0,0.00036239,31]
[393998100,1763171444059,-265.73855375,0.0003624,2]
[393998101,1763171444068,-153.97,0.00036262,60]
[393998102,1763171444078,-210.88,0.00036262,60]
[393998103,1763171444090,-153.97,0.00036362,60]
[393998104,1763171444099,-210.88,0.00036362,60]
[393998105,1763171444108,-581.69912887,0.00036391,16]
[393998106,1763171444118,-153.97,0.00036462,60]
[393998107,1763171444129,-210.88,0.00036462,60]
[393998108,1763171444138,-151.0,0.00036513,31]
[393998109,1763171444147,-154.360164,0.00036513,31]
[393998110,1763171444156,-494.460272,0.00036513,2]
[393998111,1763171444165,-494.460272,0.00036513,2]
[393998112,1763171444175,-494.460272,0.00036513,2]
[393998113,1763171444184,-494.460272,0.00036513,2]
[393998114,1763171444193,-152.057014,0.00036513,7]
[393998115,1763171444202,-151.0,0.00036513,31]
[393998116,1763171444211,-151.0,0.00036513,31]
[393998117,1763171444220,-153.97,0.00036562,60]
[393998118,1763171444229,-210.88,0.00036562,60]
[393998119,1763171444239,-1000.0,0.00036598,2]
[393998120,1763171444248,-1000.0,0.00036598,2]
[393998121,1763171444256,-1000.0,0.00036598,2]
[393998122,1763171444266,-1000.0,0.00036598,2]
[393998123,1763171444275,-1000.0,0.00036598,2]
[393998124,1763171444285,-1000.0,0.00036598,2]
[393998125,1763171444294,-1000.0,0.00036598,2]
[393998126,1763171444303,-1000.0,0.00036598,2]
[393998127,1763171444312,-1000.0,0.00036598,2]
[393998128,1763171444320,-1000.0,0.00036598,2]
[393998129,1763171444329,-1000.0,0.00036598,2]
[393998130,1763171444338,-191.02999714,0.00036598,2]
[393998131,1763171444348,-153.97,0.00036662,60]
[393998132,1763171444358,-210.88,0.00036662,60]
[393998133,1763171444367,-153.97,0.00036762,60]
[393998134,1763171444377,-210.88,0.00036762,60]
[393998135,1763171444386,-303.4456762,0.000368,120]
[393998136,1763171444396,-1060.56262976,0.0003686,2]
[393998137,1763171444405,-153.97,0.00036862,60]
[393998138,1763171444415,-210.88,0.00036862,60]
[393998139,1763171444424,-353.994393,0.00036903,30]
[393998140,1763171444433,-154.04368634,0.00036962,60]
[393998141,1763171444443,-210.88,0.00036962,60]
[393998142,1763171444452,-2036.9723269,0.00037,2]
[393998143,1763171444462,-210.88,0.00037062,60]
[393998144,1763171444471,-2430.1775381,0.00037089,2]
[393998145,1763171444479,-12316.73108573,0.00037099,2]
[393998146,1763171444488,-210.88,0.00037162,60]
[393998147,1763171444498,-210.88,0.00037262,60]
[393998148,1763171444508,-210.88,0.00037362,60]
[393998149,1763171444517,-210.88,0.00037462,60]
[393998150,1763171444526,-210.88,0.00037562,60]
[393998151,1763171444535,-210.88,0.00037662,60]
[393998152,1763171444543,-210.88,0.00037762,60]
[393998153,1763171444552,-1018.58272734,0.000378,2]
[393998154,1763171444561,-223.73323507,0.00037803,2]
[393998155,1763171444570,-653.90996149,0.00037804,2]
[393998156,1763171444579,-353.994393,0.00037805,30]
[393998157,1763171444589,-210.88,0.00037862,60]
[393998158,1763171444598,-3078.87,0.000379,14]
[393998159,1763171444608,-210.88,0.00037962,60]
[393998160,1763171444617,-159.59792275,0.00038,2]
[393998161,1763171444626,-210.88,0.00038062,60]
[393998162,1763171444635,-210.88,0.00038162,60]
[393998163,1763171444644,-210.88,0.00038262,60]
[393998164,1763171444653,-500.0,0.00038356,30]
[393998165,1763171444662,-249.29057005,0.00038356,2]
[393998166,1763171444671,-210.88,0.00038362,120]
[393998167,1763171444680,-210.88,0.00038462,120]
[393998168,1763171444690,-1512.16,0.000385,2]
[393998169,1763171444700,-210.88,0.00038562,120]
[393998170,1763171444709,-500.0,0.0003863,30]
[393998171,1763171444719,-210.88,0.00038662,120]
[393998172,1763171444728,-353.994393,0.00038708,30]
[393998173,1763171444737,-210.88,0.00038762,120]
[393998174,1763171444748,-210.88,0.00038862,120]
[393998175,1763171444758,-500.0,0.00038904,30]
[393998176,1763171444767,-270.7,0.0003891,10]
[393998177,1763171444776,-151.0,0.00038912,120]
[393998178,1763171444786,-151.0,0.00038912,120]
[393998179,1763171444796,-235.15429,0.00038912,120]
[393998180,1763171444805,-164.322432,0.00038912,120]
[393998181,1763171444814,-151.0,0.00038912,120]
[393998182,1763171444823,-5888.0,0.00038912,10]
[393998183,1763171444832,-5888.0,0.00038912,10]
[393998184,1763171444842,-5888.0,0.00038912,10]
[393998185,1763171444851,-5888.0,0.00038912,10]
[393998186,1763171444859,-1173.52478366,0.00038912,10]
[393998187,1763171444868,-150.0,0.00038956,10]
[393998188,1763171444877,-210.88,0.00038962,120]
[393998189,1763171444887,-353.994393,0.00038976,7]
[393998190,1763171444897,-212.60338779,0.00039,120]
[393998191,1763171444906,-210.88,0.00039062,120]
[393998192,1763171444915,-353.994393,0.00039092,2]
[393998193,1763171444924,-210.88,0.00039162,120]
[393998194,1763171444934,-500.0,0.00039178,30]
[393998195,1763171444943,-210.88,0.00039262,120]
[393998196,1763171444952,-210.99,0.00039362,120]
[393998197,1763171444962,-500.0,0.00039452,30]
[393998198,1763171444971,-153.42,0.00039473,120]
[393998199,1763171444980,-2430.1775381,0.00039476,2]
[393998200,1763171444989,-1000.0,0.00039571,90]
[393998201,1763171444998,-791.0,0.00039571,90]
[393998202,1763171445007,-153.42,0.00039573,120]
[393998203,1763171445016,-160.28857289,0.000396,120]
[393998204,1763171445025,-171.34017661,0.000396,120]
[393998205,1763171445034,-163.81651222,0.000396,120]
[393998206,1763171445044,-176.25505289,0.000396,120]
[393998207,1763171445056,-177.4206029,0.000396,120]
[393998208,1763171445065,-197.55653637,0.000396,120]
[393998209,1763171445074,-163.42950571,0.000396,120]
[393998210,1763171445083,-307.2972228,0.000396,120]
[393998211,1763171445092,-161.5606258,0.000396,120]
[393998212,1763171445101,-183.90945505,0.000396,120]
[393998213,1763171445110,-1372.88107901,0.000396,120]
[393998214,1763171445119,-192.03659602,0.000396,120]
[393998215,1763171445135,-303.57153172,0.000396,120]
[393998216,1763171445144,-183.27797614,0.000396,120]
[393998217,1763171445153,-157.29296,0.0003961,30]
[393998218,1763171445163,-353.994393,0.0003961,30]
[393998219,1763171445172,-151.0,0.00039612,120]
[393998220,1763171445181,-151.396938,0.00039612,120]
[393998221,1763171445190,-151.0,0.00039612,120]
[393998222,1763171445199,-151.0,0.00039612,120]
[393998223,1763171445208,-151.0,0.00039612,120]
[393998224,1763171445218,-152.369349,0.00039612,30]
[393998225,1763171445227,-446.620484,0.00039654,2]
[393998226,1763171445236,-153.42,0.00039673,120]
[393998227,1763171445245,-159.0,0.000397,120]
[393998228,1763171445254,-3078.87,0.000397,14]
[393998229,1763171445263,-500.0,0.00039726,30]
[393998230,1763171445272,-153.42,0.00039773,120]
[393998231,1763171445281,-969.79392272,0.00039797,2]
[393998232,1763171445290,-153.42,0.00039873,120]
[393998233,1763171445299,-153.42,0.00039973,120]
[393998234,1763171445309,-500.0,0.0004,30]
[393998235,1763171445318,-400.0,0.0004,2]
[393998236,1763171445327,-500.0,0.0004,2]
[393998237,1763171445335,-596.43865307,0.0004,2]
[393998238,1763171445345,-165.34232364,0.0004,120]
[393998239,1763171445355,-428.97928207,0.0004,120]
[393998240,1763171445364,-276.2447194,0.0004,10]
[393998241,1763171445373,-26589.34388447,0.0004,2]
[393998242,1763171445381,-20043.41928171,0.0004,2]
[393998243,1763171445390,-153.42,0.00040073,120]
[393998244,1763171445399,-153.42,0.00040173,120]
[393998245,1763171445408,-153.42,0.00040273,120]
[393998246,1763171445417,-500.0,0.00040274,30]
[393998247,1763171445425,-153.42,0.00040373,120]
[393998248,1763171445434,-153.42,0.00040473,120]
[393998249,1763171445443,-500.0,0.00040548,30]
[393998250,1763171445452,-153.42,0.00040573,120]
[393998251,1763171445462,-153.42,0.00040673,120]
[393998252,1763171445470,-153.42,0.00040773,120]
[393998253,1763171445479,-171.34017661,0.000408,120]
[393998254,1763171445488,-163.81651222,0.000408,120]
[393998255,1763171445497,-177.4206029,0.000408,120]
[393998256,1763171445506,-197.55653637,0.000408,120]
[393998259,1763171445641,-163.42950571,0.000408,120]
[393998260,1763171445651,-183.90945505,0.000408,120]
[393998261,1763171445661,-1372.88107901,0.000408,120]
[393998262,1763171445670,-192.03659602,0.000408,120]
[393998263,1763171445680,-353.994393,0.000408,120]
[393998264,1763171445689,-500.0,0.00040822,30]
[393998265,1763171445698,-153.42,0.00040873,120]
[393998266,1763171445707,-5000.0,0.00040956,4]
[393998267,1763171445716,-153.42,0.00040973,120]
[393998268,1763171445725,-418.2924261,0.00040999,120]
[393998269,1763171445734,-632.921,0.00041,2]
[393998270,1763171445743,-2154.824,0.00041,2]
[393998271,1763171445753,-1022.353,0.00041,2]
[393998272,1763171445762,-418.747,0.00041,2]
[393998273,1763171445772,-153.42,0.00041073,120]
[393998274,1763171445781,-999.0,0.00041095,120]
[393998275,1763171445790,-500.0,0.00041096,30]
[393998276,1763171445800,-393.07,0.00041096,120]
[393998278,1763171445809,-783.33,0.00041096,120]
[393998279,1763171445819,-183.61852445,0.00041096,2]
[393998281,1763171445828,-153.42,0.00041173,120]
[393998282,1763171445837,-153.42,0.00041273,120]
[393998283,1763171445848,-171.93401041,0.000413,10]
[393998284,1763171445857,-500.0,0.0004137,120]
[393998285,1763171445866,-153.42,0.00041373,120]
[393998286,1763171445873,-153.42,0.00041473,120]
[393998287,1763171445881,-3078.87,0.000415,14]
[393998288,1763171445889,-153.42,0.00041573,120]
[393998289,1763171445898,-500.0,0.00041644,120]
[393998290,1763171445905,-153.42,0.00041673,120]
[393998291,1763171445911,-1000.0,0.00041726,14]
[393998292,1763171445919,-762.0,0.00041726,14]
[393998293,1763171445927,-153.42,0.00041773,120]
[393998294,1763171445936,-1000.0,0.00041863,14]
[393998295,1763171445945,-2430.1775381,0.00041864,2]
[393998296,1763171445954,-153.42,0.00041873,120]
[393998297,1763171445962,-152.30323945,0.000419,10]
[393998298,1763171445971,-500.0,0.00041918,120]
[393998299,1763171445980,-153.42,0.00041973,120]
[393998300,1763171445989,-1000.0,0.00042,14]
[393998301,1763171445997,-1372.88107901,0.00042,120]
[393998302,1763171446006,-183.90945505,0.00042,120]
[393998303,1763171446015,-192.03659602,0.00042,120]
[393998304,1763171446023,-2000.0,0.00042,21]
[393998305,1763171446032,-153.42,0.00042073,120]
[393998306,1763171446045,-179.69451932,0.00042121,26]
[393998307,1763171446053,-153.42,0.00042173,120]
[393998308,1763171446062,-500.0,0.00042192,120]
[393998309,1763171446071,-153.42,0.00042273,120]
[393998310,1763171446080,-153.42,0.00042373,120]
[393998311,1763171446089,-500.0,0.00042466,120]
[393998312,1763171446099,-153.42,0.00042473,120]
[393998313,1763171446108,-353.994393,0.00042549,120]
[393998314,1763171446119,-153.42,0.00042573,120]
[393998315,1763171446128,-153.42,0.00042673,120]
[393998317,1763171446137,-500.0,0.0004274,120]
[393998319,1763171446146,-153.42,0.00042773,120]
[393998321,1763171446155,-153.42,0.00042873,120]
[393998322,1763171446164,-406.49,0.00042973,15]
[393998324,1763171446173,-153.42,0.00042973,120]
[393998325,1763171446182,-500.0,0.00043014,120]
[393998327,1763171446191,-153.42,0.00043073,120]
[393998328,1763171446200,-153.42,0.00043173,120]
[393998329,1763171446209,-1966.4424,0.0004322,30]
[393998331,1763171446219,-153.42,0.00043273,120]
[393998332,1763171446228,-500.0,0.00043288,120]
[393998333,1763171446237,-195.642105,0.00043288,7]
[393998334,1763171446246,-195.642105,0.00043288,7]
[393998335,1763171446254,-195.642105,0.00043288,7]
[393998336,1763171446263,-1253.127483,0.00043288,120]
[393998337,1763171446272,-195.642105,0.00043288,7]
[393998338,1763171446281,-1253.127483,0.00043288,120]
[393998339,1763171446290,-151.0,0.00043288,120]
[393998340,1763171446299,-1253.127483,0.00043288,120]
[393998341,1763171446308,-1253.127483,0.00043288,120]
[393998342,1763171446317,-151.0,0.00043288,120]
[393998343,1763171446326,-151.0,0.00043288,30]
[393998344,1763171446335,-158.214458,0.00043288,120]
[393998345,1763171446344,-533.92382,0.00043288,120]
[393998346,1763171446353,-533.92382,0.00043288,120]
[393998347,1763171446363,-154.54474,0.00043288,120]
[393998348,1763171446372,-588.297637,0.00043288,120]
[393998349,1763171446381,-533.92382,0.00043288,120]
[393998350,1763171446391,-588.297637,0.00043288,120]
[393998351,1763171446400,-533.92382,0.00043288,120]
[393998352,1763171446409,-588.297637,0.00043288,120]
[393998353,1763171446418,-588.297637,0.00043288,120]
[393998354,1763171446427,-222.029966,0.00043288,120]
[393998355,1763171446436,-154.800377,0.00043288,120]
[393998356,1763171446445,-151.0,0.00043288,120]
[393998357,1763171446454,-151.0,0.00043288,2]
[393998358,1763171446463,-151.0,0.00043288,120]
[393998359,1763171446472,-151.0,0.00043288,120]
[393998360,1763171446480,-151.0,0.00043288,120]
[393998361,1763171446490,-151.0,0.00043288,120]
[393998362,1763171446498,-290.291685,0.00043288,120]
[393998363,1763171446507,-2868.729599,0.00043288,120]
[393998364,1763171446517,-151.0,0.00043288,120]
[393998365,1763171446526,-2868.729599,0.00043288,120]
[393998366,1763171446535,-151.0,0.00043288,120]
[393998367,1763171446544,-2868.729599,0.00043288,120]
[393998368,1763171446553,-2868.729599,0.00043288,120]
[393998369,1763171446562,-151.0,0.00043288,120]
[393998370,1763171446571,-151.0,0.00043288,120]
[393998371,1763171446580,-151.0,0.00043288,120]
[393998372,1763171446589,-151.757969,0.00043288,120]
[393998374,1763171446599,-1372.88107901,0.000433,120]
[393998376,1763171446607,-192.03659602,0.000433,120]
[393998378,1763171446616,-151.0,0.000433,120]
[393998380,1763171446625,-151.0,0.000433,120]
[393998382,1763171446635,-151.0,0.000433,15]
[393998384,1763171446647,-151.0,0.000433,120]
[393998386,1763171446665,-151.0,0.000433,120]
[393998387,1763171446680,-3078.87,0.000433,14]
[393998388,1763171446694,-169.958819,0.000433,120]
[393998389,1763171446709,-151.0,0.000433,120]
[393998390,1763171446726,-151.0,0.000433,120]
[393998391,1763171446741,-153.688824,0.000433,120]
[393998392,1763171446757,-494.460272,0.000433,2]
[393998393,1763171446772,-494.460272,0.000433,2]
[393998394,1763171446786,-494.460272,0.000433,2]
[393998395,1763171446801,-494.460272,0.000433,2]
[393998396,1763171446816,-151.0,0.000433,120]
[393998397,1763171446828,-151.0,0.000433,120]
[393998398,1763171446842,-151.0,0.000433,120]
[393998399,1763171446857,-151.0,0.000433,120]
[393998400,1763171446872,-188.956221,0.000433,120]
[393998401,1763171446889,-151.0,0.000433,120]
[393998402,1763171446908,-151.0,0.000433,120]
[393998403,1763171446920,-197.292001,0.000433,120]
[393998404,1763171446931,-197.292001,0.000433,120]
[393998405,1763171446947,-197.292001,0.000433,120]
[393998406,1763171446963,-197.292001,0.000433,120]
[393998407,1763171446973,-356.203395,0.000433,120]
[393998408,1763171446986,-356.203395,0.000433,120]
[393998409,1763171446999,-356.203395,0.000433,120]
[393998410,1763171447010,-356.203395,0.000433,120]
[393998411,1763171447022,-151.0,0.000433,120]
[393998412,1763171447035,-151.0,0.000433,120]
[393998413,1763171447048,-151.0,0.000433,120]
[393998414,1763171447063,-151.0,0.000433,120]
[393998415,1763171447076,-153.42,0.00043373,120]
[393998416,1763171447089,-153.42,0.00043473,120]
[393998417,1763171447105,-1000.0,0.00043529,90]
[393998418,1763171447116,-528.0,0.00043529,90]
[393998419,1763171447129,-500.0,0.00043562,120]
[393998420,1763171447141,-710.97719485,0.00043562,120]
[393998421,1763171447154,-153.42,0.00043573,120]
[393998422,1763171447166,-153.42,0.00043673,120]
[393998423,1763171447179,-153.42,0.00043773,120]
[393998424,1763171447191,-1000.0,0.000438,90]
[393998425,1763171447203,-156.062654,0.000438,120]
[393998426,1763171447216,-456.788697,0.000438,120]
[393998427,1763171447231,-151.0,0.000438,120]
[393998428,1763171447242,-456.788697,0.000438,120]
[393998429,1763171447255,-456.788697,0.000438,120]
[393998430,1763171447267,-456.788697,0.000438,120]
[393998431,1763171447279,-172.558549,0.000438,120]
[393998432,1763171447292,-172.558549,0.000438,120]
[393998433,1763171447304,-172.558549,0.000438,120]
[393998434,1763171447317,-172.558549,0.000438,120]
[393998435,1763171447329,-358.8527,0.000438,120]
[393998436,1763171447342,-358.8527,0.000438,120]
[393998437,1763171447355,-358.8527,0.000438,120]
[393998438,1763171447367,-358.8527,0.000438,120]
[393998439,1763171447380,-999.0,0.00043835,120]
[393998440,1763171447392,-500.0,0.00043836,120]
[393998441,1763171447404,-151.0,0.00043836,120]
[393998442,1763171447417,-153.42,0.00043873,120]
[393998443,1763171447430,-153.42,0.00043973,120]
[393998444,1763171447442,-151.29256741,0.00043973,120]
[393998445,1763171447453,-629.0,0.00044,2]
[393998446,1763171447465,-2149.0,0.00044,2]
[393998447,1763171447477,-988.0,0.00044,2]
[393998448,1763171447489,-413.0,0.00044,2]
[393998449,1763171447503,-153.42,0.00044073,120]
[393998450,1763171447515,-391.16,0.00044109,14]
[393998451,1763171447527,-500.0,0.0004411,120]
[393998452,1763171447540,-153.42,0.00044173,120]
[393998453,1763171447552,-593.4565077,0.0004425,30]
[393998454,1763171447565,-164.2237678,0.0004425,30]
[393998455,1763171447577,-2430.1775381,0.00044252,2]
[393998456,1763171447590,-153.42,0.00044273,120]
[393998457,1763171447603,-353.994393,0.00044298,120]
[393998458,1763171447616,-159.0,0.000443,120]
[393998459,1763171447629,-153.42,0.00044373,120]
[393998460,1763171447641,-500.0,0.00044384,120]
[393998461,1763171447653,-153.42,0.00044473,120]
[393998462,1763171447666,-153.42,0.00044573,120]
[393998463,1763171447678,-1372.88107901,0.000446,120]
[393998464,1763171447690,-192.03659602,0.000446,120]
[393998465,1763171447702,-500.0,0.00044658,120]
[393998466,1763171447715,-153.42,0.00044673,120]
[393998467,1763171447728,-153.42,0.00044773,120]
[393998468,1763171447740,-353.994393,0.00044797,7]
[393998469,1763171447753,-153.42,0.00044873,120]
[393998470,1763171447764,-153.42,0.00044973,120]
[393998471,1763171447777,-405.48956,0.00045,120]
[393998472,1763171447790,-153.42,0.00045073,120]
[393998473,1763171447802,-3078.87,0.000451,14]
[393998474,1763171447815,-153.42,0.00045173,120]
[393998475,1763171447828,-153.42,0.00045273,120]
[393998476,1763171447841,-153.42,0.00045373,120]
[393998477,1763171447854,-153.42,0.00045473,120]